bitfinex/quotes_BTCUSD_20240715
["timestamp","ask_amount","ask_price","bid_price","bid_amount"]
[1721075725595,0.1654,63795.0,63794.0,0.17988853]
[1721075725800,0.27617459,63795.0,63794.0,0.13105238]
[1721075726007,0.27675585,63795.0,63794.0,0.13105238]
[1721075726239,0.27675585,63795.0,63794.0,0.17888853]
[1721075726422,0.21219722,63795.0,63794.0,0.17888853]
[1721075726627,0.27675498,63795.0,63794.0,0.13005238]
[1721075726845,0.27675498,63795.0,63794.0,0.17888853]
[1721075727049,0.27675498,63795.0,63794.0,0.18388853]
[1721075727474,0.27675498,63795.0,63794.0,0.13788853]
[1721075727676,0.27675498,63795.0,63794.0,0.18788853]
[1721075728908,0.27675498,63795.0,63794.0,0.13788853]
[1721075729169,0.4169081,63795.0,63794.0,0.08905238]
[1721075729833,0.5736601,63795.0,63794.0,0.08905238]
[1721075730600,1.11205723,63795.0,63794.0,0.08905238]
[1721075730829,1.11205723,63795.0,63787.0,0.04883615]
[1721075730830,0.322169,63788.0,63787.0,0.04883615]
[1721075731024,0.3576081,63788.0,63787.0,0.04883615]
[1721075731624,0.36253479,63788.0,63787.0,0.04883615]
[1721075732312,0.29902391,63788.0,63787.0,0.04883615]
[1721075732543,0.5204649,63788.0,63787.0,0.009]
[1721075733031,0.3646959,63788.0,63787.0,0.009]
[1721075733750,0.5214649,63788.0,63787.0,0.009]
[1721075734246,0.5859649,63788.0,63787.0,0.009]
[1721075734663,0.4291959,63788.0,63787.0,0.009]
[1721075735791,0.4291959,63788.0,63787.0,0.05783615]
[1721075735792,0.42756044,63788.0,63787.0,0.05783615]
[1721075736253,0.36552391,63788.0,63787.0,0.05783615]
[1721075736488,0.30102391,63788.0,63787.0,0.05783615]
[1721075737786,0.36207207,63788.0,63787.0,0.05783615]
[1721075738384,0.36207207,63788.0,63787.0,0.10783615]
[1721075738385,0.30102391,63788.0,63787.0,0.10783615]
[1721075738982,0.30102391,63788.0,63787.0,0.05783615]
[1721075742172,0.36107467,63788.0,63787.0,0.05783615]
[1721075742644,0.36107467,63788.0,63787.0,0.009]
[1721075742870,0.89588167,63788.0,63787.0,0.009]
[1721075742980,1.31955572,63788.0,63787.0,0.009]
[1721075743183,1.63258808,63788.0,63787.0,0.009]
[1721075743388,1.70879086,63788.0,63787.0,0.009]
[1721075743814,1.4170424,63788.0,63787.0,0.009]
[1721075744016,1.4170424,63788.0,63786.0,0.000913]
[1721075744017,0.635714,63787.0,63786.0,0.000913]
[1721075744215,0.80539517,63787.0,63786.0,0.000913]
[1721075744417,0.81141008,63787.0,63786.0,0.000913]
[1721075745081,1.12481825,63787.0,63786.0,0.000913]
[1721075745583,1.20791825,63787.0,63786.0,0.000913]
[1721075748163,0.89340777,63787.0,63786.0,0.000913]
[1721075748576,1.20690444,63787.0,63786.0,0.000913]
[1721075748788,1.20990444,63787.0,63786.0,0.000913]
[1721075749001,1.20690444,63787.0,63786.0,0.000913]
[1721075749189,1.20790444,63787.0,63786.0,0.000913]
[1721075749415,1.30073565,63787.0,63786.0,0.000913]
[1721075749789,1.30373565,63787.0,63786.0,0.000913]
[1721075750163,1.61527865,63787.0,63786.0,0.000913]
[1721075750338,1.80127865,63787.0,63786.0,0.000913]
[1721075750540,1.84076082,63787.0,63786.0,0.000913]
[1721075750953,1.84276082,63787.0,63786.0,0.000913]
[1721075751194,1.69153313,63787.0,63786.0,0.000913]
[1721075751394,1.84359747,63787.0,63786.0,0.000913]
[1721075751521,2.00571538,63787.0,63786.0,0.000913]
[1721075751722,1.84259747,63787.0,63786.0,0.000913]
[1721075752125,1.84359747,63787.0,63786.0,0.000913]
[1721075752365,1.84159747,63787.0,63786.0,0.000913]
[1721075753354,1.84459747,63787.0,63786.0,0.000913]
[1721075754411,1.69253313,63787.0,63786.0,0.000913]
[1721075754628,1.84498196,63787.0,63786.0,0.000913]
[1721075754799,2.00709987,63787.0,63786.0,0.000913]
[1721075755009,1.84498196,63787.0,63786.0,0.000913]
[1721075756210,0.635825,63772.0,63771.0,0.08105238]
[1721075756417,1.07629205,63772.0,63771.0,0.08105238]
[1721075756663,1.11720611,63772.0,63771.0,0.08105238]
[1721075756801,0.57148111,63772.0,63771.0,0.08105238]
[1721075757003,0.57052863,63772.0,63771.0,0.08105238]
[1721075757205,0.627302,63765.0,63764.0,0.00296546]
[1721075757402,0.1654,63763.0,63752.0,0.05]
[1721075757601,0.0827,63764.0,63752.0,0.05]
[1721075757602,0.949577,63761.0,63752.0,0.05]
[1721075757804,1.19819522,63761.0,63753.0,0.00306353]
[1721075758008,1.64136986,63761.0,63753.0,0.00306353]
[1721075758342,1.64136986,63761.0,63751.0,0.08105238]
[1721075758343,2.25553965,63761.0,63751.0,0.08105238]
[1721075759313,2.25553965,63761.0,63760.0,0.014174]
[1721075759557,1.097901,63758.0,63751.0,0.08105238]
[1721075759804,2.13697567,63758.0,63751.0,0.08105238]
[1721075760031,1.346102,63752.0,63751.0,0.08105238]
[1721075760277,1.71942426,63752.0,63751.0,0.08105238]
[1721075760538,1.72435144,63752.0,63751.0,0.08105238]
[1721075760754,2.14103023,63752.0,63751.0,0.08105238]
[1721075761026,1.0141,63751.0,63750.0,0.009174]
[1721075761229,2.06975486,63751.0,63750.0,0.009174]
[1721075761481,1.42423206,63751.0,63750.0,0.009174]
[1721075761711,1.22589171,63751.0,63750.0,0.009174]
[1721075762162,0.91217171,63751.0,63750.0,0.009174]
[1721075762400,0.92117171,63751.0,63750.0,0.010174]
[1721075762625,0.92117171,63751.0,63750.0,0.009174]
[1721075762873,0.92117171,63751.0,63750.0,0.10801015]
[1721075762874,0.35059171,63751.0,63750.0,0.10801015]
[1721075763079,0.0139172,63751.0,63750.0,0.10801015]
[1721075763297,0.1793172,63751.0,63750.0,0.10801015]
[1721075763569,0.18661246,63751.0,63750.0,0.10801015]
[1721075763782,0.19112461,63751.0,63750.0,0.05801015]
[1721075764000,0.20212461,63751.0,63750.0,0.05801015]
[1721075764229,1.06989711,63751.0,63750.0,0.009174]
[1721075764431,0.28559711,63751.0,63750.0,0.009174]
[1721075764623,0.28559711,63751.0,63750.0,0.010174]
[1721075764624,0.27959711,63751.0,63750.0,0.010174]
[1721075765040,0.28059711,63751.0,63750.0,0.010174]
[1721075765270,0.75117711,63751.0,63750.0,0.010174]
[1721075765479,0.29281096,63751.0,63750.0,0.010174]
[1721075766096,0.29281096,63751.0,63750.0,0.060174]
[1721075766320,0.184126,63751.0,63750.0,0.11323753]
[1721075766534,0.184126,63751.0,63750.0,0.89182453]
[1721075766535,0.018726,63751.0,63750.0,0.89182453]
[1721075766743,0.018726,63751.0,63750.0,0.93759715]
[1721075766944,0.01421385,63751.0,63750.0,0.34701015]
[1721075767272,0.01421385,63751.0,63750.0,0.50387215]
[1721075767497,0.01321385,63751.0,63750.0,0.50593568]
[1721075767699,0.01321385,63751.0,63750.0,0.35107368]
[1721075767700,0.01421385,63751.0,63750.0,0.35107368]
[1721075767934,0.01421385,63751.0,63750.0,0.34801015]
[1721075768261,0.01421385,63751.0,63750.0,0.34601015]
[1721075768262,0.01221385,63751.0,63750.0,0.34601015]
[1721075768467,0.001,63751.0,63750.0,0.46601015]
[1721075768634,0.01321385,63751.0,63750.0,1.25032215]
[1721075768824,0.001,63751.0,63750.0,1.25032215]
[1721075769033,0.002,63751.0,63750.0,1.25032215]
[1721075769246,0.002,63751.0,63750.0,1.56404715]
[1721075769465,0.002,63751.0,63750.0,1.62404715]
[1721075769674,0.003,63751.0,63750.0,1.63404715]
[1721075770025,0.002,63751.0,63750.0,1.62404715]
[1721075770248,0.394772,63782.0,63772.0,0.04883615]
[1721075770249,0.1654,63773.0,63772.0,0.04883615]
[1721075770468,0.1654,63773.0,63772.0,0.38293615]
[1721075770469,0.31556634,63773.0,63772.0,0.38293615]
[1721075770699,0.32012392,63773.0,63772.0,0.1651]
[1721075770908,0.19878353,63773.0,63772.0,0.1651]
[1721075771233,0.19878353,63773.0,63772.0,0.05]
[1721075771382,0.19878353,63773.0,63772.0,0.049]
[1721075771383,0.47426159,63773.0,63772.0,0.049]
[1721075771606,0.31745559,63773.0,63772.0,0.049]
[1721075771819,0.19878353,63773.0,63772.0,0.101]
[1721075772030,0.31739212,63773.0,63772.0,0.101]
[1721075772235,0.19878353,63773.0,63772.0,0.101]
[1721075773353,0.32121037,63773.0,63772.0,0.101]
[1721075773569,0.19978353,63773.0,63772.0,0.122]
[1721075775466,0.85510183,63773.0,63772.0,0.023]
[1721075775700,0.38468383,63773.0,63772.0,0.023]
[1721075777261,0.38468383,63773.0,63772.0,0.014]
[1721075777466,0.38368383,63773.0,63771.0,0.04683615]
[1721075777674,0.95398758,63773.0,63772.0,0.00306353]
[1721075777885,1.1638576,63773.0,63772.0,0.00306353]
[1721075778093,0.322211,63771.0,63770.0,0.049]
[1721075778299,0.322213,63770.0,63768.0,0.08105238]
[1721075778551,0.20987002,63771.0,63768.0,0.08105238]
[1721075778552,0.53126603,63769.0,63768.0,0.13005238]
[1721075778754,0.53584345,63769.0,63768.0,0.13005238]
[1721075779109,0.98597545,63769.0,63768.0,0.08105238]
[1721075779308,1.71323945,63769.0,63768.0,0.08105238]
[1721075780154,1.39960745,63769.0,63768.0,0.08105238]
[1721075781201,1.49743399,63769.0,63768.0,0.10905238]
[1721075781423,1.48836666,63769.0,63768.0,0.10905238]
[1721075781813,1.48623906,63769.0,63768.0,0.09505238]
[1721075782060,1.48623906,63769.0,63768.0,0.10905238]
[1721075782267,1.57162147,63769.0,63768.0,0.10905238]
[1721075782478,1.52479353,63769.0,63768.0,0.10905238]
[1721075783068,1.59503544,63769.0,63768.0,0.10905238]
[1721075783271,1.5716275,63769.0,63768.0,0.10905238]
[1721075783857,1.52479353,63769.0,63768.0,0.10905238]
[1721075784400,1.5716275,63769.0,63768.0,0.10905238]
[1721075784829,1.36565534,63769.0,63768.0,0.10905238]
[1721075785057,1.57233571,63769.0,63768.0,0.10905238]
[1721075785534,1.59575729,63769.0,63768.0,0.10905238]
[1721075785761,1.52549256,63769.0,63768.0,0.10905238]
[1721075786432,1.64260044,63769.0,63768.0,0.10905238]
[1721075786893,1.64260044,63769.0,63768.0,0.028]
[1721075786894,1.83912456,63769.0,63768.0,0.028]
[1721075787142,1.86212456,63769.0,63768.0,0.028]
[1721075787610,1.86212456,63769.0,63768.0,0.014]
[1721075788067,1.86354053,63769.0,63768.0,0.008]
[1721075788533,1.86354053,63769.0,63768.0,0.017]
[1721075788534,2.17717253,63769.0,63768.0,0.017]
[1721075788775,1.86354053,63769.0,63768.0,0.017]
[1721075789009,1.84415597,63769.0,63768.0,0.017]
[1721075790172,1.13349197,63769.0,63768.0,0.017]
[1721075790611,1.45933616,63769.0,63768.0,0.017]
[1721075790816,1.57653093,63769.0,63768.0,0.017]
[1721075791021,1.23946113,63769.0,63768.0,0.017]
[1721075791233,1.23739043,63769.0,63768.0,0.017]
[1721075791444,1.55102243,63769.0,63768.0,0.017]
[1721075791656,1.45726554,63769.0,63768.0,0.017]
[1721075791876,1.45726554,63769.0,63768.0,0.017924]
[1721075791877,1.57446165,63769.0,63768.0,0.017924]
[1721075792291,1.06753354,63769.0,63768.0,0.017924]
[1721075792497,0.74168935,63769.0,63768.0,0.017924]
[1721075792703,1.17254313,63769.0,63768.0,0.017924]
[1721075793142,1.05532135,63769.0,63768.0,0.017924]
[1721075793322,1.36895335,63769.0,63768.0,0.017924]
[1721075794337,1.68407441,63769.0,63768.0,0.017924]
[1721075794574,1.76627441,63769.0,63768.0,0.017924]
[1721075795494,1.76627441,63769.0,63757.0,0.00306353]
[1721075795495,0.949615,63758.0,63757.0,0.00306353]
[1721075795729,0.949615,63758.0,63755.0,0.00306353]
[1721075795730,0.635942,63756.0,63755.0,0.00306353]
[1721075795960,1.66191699,63756.0,63755.0,0.00306353]
[1721075796187,1.66191699,63756.0,63750.0,0.009174]
[1721075796188,0.94965,63755.0,63750.0,0.009174]
[1721075796421,1.5067929,63755.0,63750.0,0.009174]
[1721075796655,1.82585951,63755.0,63750.0,0.009174]
[1721075797302,1.82660413,63755.0,63750.0,0.009174]
[1721075797518,1.52442997,63755.0,63750.0,0.009174]
[1721075797724,1.1755104,63755.0,63750.0,0.009174]
[1721075797935,1.05821013,63755.0,63752.0,0.0639]
[1721075798369,0.74451013,63755.0,63754.0,0.12788853]
[1721075798576,0.74451013,63755.0,63754.0,0.12888853]
[1721075798577,1.15204759,63755.0,63754.0,0.12888853]
[1721075798783,1.46574759,63755.0,63754.0,0.12888853]
[1721075798994,1.46574759,63755.0,63754.0,0.08205238]
[1721075798995,1.85984759,63755.0,63754.0,0.08205238]
[1721075799199,1.54614785,63755.0,63754.0,0.08205238]
[1721075799404,1.54614785,63755.0,63754.0,0.08105238]
[1721075799405,1.56960727,63755.0,63754.0,0.08105238]
[1721075799632,1.76601013,63755.0,63754.0,0.08105238]
[1721075799836,1.76601013,63755.0,63754.0,0.08505238]
[1721075800042,2.3075732,63755.0,63754.0,0.004]
[1721075800245,1.9938732,63755.0,63754.0,0.004]
[1721075800448,1.85311013,63755.0,63754.0,0.008]
[1721075800862,1.8515387,63755.0,63754.0,0.008]
[1721075801073,1.4507387,63755.0,63754.0,0.008]
[1721075801279,0.86024228,63755.0,63754.0,0.008]
[1721075801487,0.83677671,63755.0,63754.0,0.008]
[1721075801695,1.0566387,63755.0,63754.0,0.008]
[1721075801907,1.3703387,63755.0,63754.0,0.008]
[1721075802582,1.4876333,63755.0,63754.0,0.008]
[1721075802985,1.3703387,63755.0,63754.0,0.008]
[1721075803951,1.21072997,63755.0,63754.0,0.008]
[1721075804155,1.37030471,63755.0,63754.0,0.008]
[1721075804364,1.20490471,63755.0,63754.0,0.008]
[1721075804558,1.20490448,63755.0,63754.0,0.008]
[1721075805071,1.20490448,63755.0,63754.0,0.004]
[1721075805250,1.20490448,63755.0,63754.0,0.009]
[1721075805439,1.20490448,63755.0,63754.0,0.004]
[1721075805861,1.20590448,63755.0,63754.0,0.017]
[1721075806080,1.20590448,63755.0,63754.0,0.013]
[1721075806459,1.20590448,63755.0,63754.0,0.016]
[1721075807070,1.29969724,63755.0,63754.0,0.013]
[1721075807287,1.01139357,63755.0,63754.0,0.025]
[1721075807506,0.8941438,63755.0,63754.0,0.025]
[1721075807909,0.67424574,63755.0,63754.0,0.025]
[1721075808318,0.66336869,63755.0,63754.0,0.025]
[1721075808518,0.56956675,63755.0,63754.0,0.025]
[1721075809378,0.88326675,63755.0,63754.0,0.025]
[1721075809821,1.00052036,63755.0,63754.0,0.025]
[1721075810013,0.88326675,63755.0,63754.0,0.025]
[1721075810219,0.97706276,63755.0,63754.0,0.025]
[1721075810418,0.88326675,63755.0,63754.0,0.025]
[1721075811174,1.00050669,63755.0,63754.0,0.025]
[1721075811907,0.88326675,63755.0,63754.0,0.025]
[1721075812271,1.78034623,63755.0,63754.0,0.025]
[1721075812630,1.81836491,63755.0,63754.0,0.025]
[1721075812896,1.67766675,63755.0,63754.0,0.025]
[1721075813439,1.51715292,63755.0,63754.0,0.025]
[1721075813641,1.67883407,63755.0,63754.0,0.025]
[1721075813850,1.61509024,63755.0,63754.0,0.025]
[1721075814055,1.67799744,63755.0,63754.0,0.025]
[1721075814667,1.61209744,63755.0,63754.0,0.025]
[1721075814865,1.39259165,63755.0,63754.0,0.025]
[1721075815280,1.36913608,63755.0,63754.0,0.025]
[1721075815480,1.27539744,63755.0,63754.0,0.025]
[1721075815680,1.36913612,63755.0,63754.0,0.025]
[1721075815916,1.34569967,63755.0,63754.0,0.025]
[1721075816130,0.88359744,63755.0,63754.0,0.025]
[1721075816311,0.95390066,63755.0,63754.0,0.025]
[1721075816509,0.81649055,63755.0,63754.0,0.025]
[1721075816665,0.88284168,63755.0,63754.0,0.025]
[1721075816867,0.97658124,63755.0,63754.0,0.025]
[1721075817226,0.66288124,63755.0,63754.0,0.025]
[1721075817474,0.95315277,63755.0,63754.0,0.025]
[1721075817671,0.95339385,63755.0,63754.0,0.025]
[1721075817822,0.88308276,63755.0,63754.0,0.025]
[1721075818248,0.95339385,63755.0,63754.0,0.025]
[1721075818456,0.88308276,63755.0,63754.0,0.025]
[1721075818850,0.97685487,63755.0,63754.0,0.025]
[1721075819048,0.97925801,63755.0,63754.0,0.025]
[1721075819256,1.00266035,63755.0,63754.0,0.025]
[1721075819439,0.8854859,63755.0,63754.0,0.025]
[1721075819641,1.00272836,63755.0,63754.0,0.025]
[1721075819882,0.8854859,63755.0,63754.0,0.025]
[1721075820300,1.1991859,63755.0,63754.0,0.025]
[1721075822328,0.72539714,63755.0,63754.0,0.025]
[1721075822664,0.88604817,63755.0,63754.0,0.025]
[1721075824266,1.19974817,63755.0,63754.0,0.025]
[1721075825285,1.19974817,63755.0,63754.0,0.025924]
[1721075826071,1.19974817,63755.0,63754.0,0.092024]
[1721075826072,1.00343555,63755.0,63754.0,0.092024]
[1721075826535,1.00343555,63755.0,63754.0,0.312024]
[1721075826536,0.43288555,63755.0,63754.0,0.312024]
[1721075826796,0.43288555,63755.0,63754.0,0.83464453]
[1721075826797,0.17951445,63755.0,63754.0,0.83464453]
[1721075827015,0.08519874,63755.0,63754.0,1.221086]
[1721075827239,0.07742899,63755.0,63754.0,1.221086]
[1721075827455,0.06521683,63755.0,63754.0,1.221086]
[1721075827674,0.06521683,63755.0,63754.0,0.882381]
[1721075827675,0.06321683,63755.0,63754.0,0.882381]
[1721075827884,0.04695431,63762.0,63761.0,0.04583615]
[1721075828093,0.04695431,63762.0,63761.0,0.14483615]
[1721075828094,0.28992323,63762.0,63761.0,0.14483615]
[1721075828302,0.34547756,63762.0,63761.0,0.29198853]
[1721075828502,0.34547756,63762.0,63761.0,0.53778853]
[1721075828503,0.14077005,63762.0,63761.0,0.53778853]
[1721075828698,0.07682164,63762.0,63761.0,0.53778853]
[1721075828957,0.07682164,63762.0,63761.0,0.69462353]
[1721075829333,0.06393152,63762.0,63761.0,1.33596553]
[1721075829530,0.00084,63768.0,63766.0,0.2861]
[1721075829802,0.00084,63768.0,63767.0,0.27206353]
[1721075830627,0.00084,63768.0,63767.0,0.41156353]
[1721075830983,0.06473452,63768.0,63767.0,0.41156353]
[1721075831568,0.00084,63768.0,63767.0,0.42556353]
[1721075831757,0.06515322,63768.0,63767.0,0.42556353]
[1721075832611,0.06515322,63768.0,63767.0,0.4225]
[1721075833419,0.06515322,63768.0,63767.0,0.138]
[1721075833623,0.06515322,63768.0,63767.0,0.077]
[1721075833856,0.07812588,63768.0,63767.0,0.049]
[1721075834062,0.07812588,63768.0,63767.0,0.063]
[1721075834274,0.07812588,63768.0,63767.0,0.077]
[1721075834275,0.54857988,63768.0,63767.0,0.077]
[1721075834492,0.63867045,63768.0,63767.0,0.063]
[1721075834712,0.63867045,63768.0,63767.0,0.077]
[1721075834713,0.67721808,63768.0,63767.0,0.077]
[1721075834918,0.67721808,63768.0,63767.0,0.063]
[1721075834919,0.63838382,63768.0,63767.0,0.063]
[1721075835142,0.07783925,63768.0,63767.0,0.049]
[1721075835371,0.07783925,63768.0,63767.0,0.063]
[1721075835372,0.07783357,63768.0,63767.0,0.063]
[1721075835616,0.23465157,63768.0,63767.0,0.049]
[1721075835830,0.32438647,63768.0,63767.0,0.049]
[1721075836234,0.16756847,63768.0,63767.0,0.049]
[1721075836440,0.32376874,63768.0,63767.0,0.049]
[1721075836887,0.32550223,63768.0,63767.0,0.049]
[1721075837092,0.32550223,63768.0,63767.0,0.063]
[1721075837291,0.23465157,63768.0,63767.0,0.063]
[1721075837469,0.23465157,63768.0,63767.0,0.077]
[1721075837878,0.23465157,63768.0,63767.0,0.063]
[1721075838081,0.3236805,63768.0,63767.0,0.063]
[1721075838307,0.3236805,63768.0,63767.0,0.077]
[1721075840145,0.3236805,63768.0,63767.0,0.028]
[1721075840146,1.1903525,63768.0,63767.0,0.028]
[1721075840383,0.92358694,63768.0,63767.0,0.028]
[1721075840589,1.0127508,63768.0,63767.0,0.028]
[1721075840759,1.12992691,63768.0,63767.0,0.028]
[1721075840960,1.6400228,63768.0,63767.0,0.028]
[1721075841168,1.16504597,63768.0,63767.0,0.028]
[1721075841368,1.6619797,63768.0,63767.0,0.028]
[1721075842134,1.6619797,63768.0,63767.0,0.014]
[1721075842555,1.6629797,63768.0,63767.0,0.014]
[1721075843417,0.47055,63755.0,63754.0,0.049924]
[1721075843632,0.62277627,63755.0,63754.0,0.049924]
[1721075843852,0.16504162,63755.0,63754.0,0.049924]
[1721075844310,0.07585437,63755.0,63754.0,0.149924]
[1721075844516,0.07619603,63755.0,63754.0,0.333724]
[1721075844724,0.06338068,63755.0,63754.0,0.333724]
[1721075844924,0.14688316,63763.0,63762.0,0.09583615]
[1721075845129,0.14688316,63763.0,63762.0,0.17688853]
[1721075845130,0.35014947,63763.0,63762.0,0.17688853]
[1721075845336,0.25147418,63763.0,63762.0,0.17688853]
[1721075845745,0.25147418,63763.0,63762.0,0.12688853]
[1721075846740,0.25147418,63763.0,63762.0,0.17688853]
[1721075846917,0.25147418,63763.0,63762.0,0.29248853]
[1721075847118,0.25147418,63763.0,63762.0,0.24248853]
[1721075847473,0.26215188,63763.0,63762.0,0.24248853]
[1721075847685,0.26186451,63763.0,63762.0,0.24948853]
[1721075847954,0.19762366,63763.0,63762.0,0.24948853]
[1721075848157,0.16186517,63763.0,63762.0,0.24248853]
[1721075848362,0.26186517,63763.0,63762.0,0.24948853]
[1721075848567,0.26176517,63763.0,63762.0,0.24948853]
[1721075848771,0.26176517,63763.0,63762.0,0.25448853]
[1721075848962,0.40693728,63763.0,63762.0,0.25448853]
[1721075849163,0.26176517,63763.0,63762.0,0.25448853]
[1721075849653,0.29479479,63763.0,63762.0,0.25448853]
[1721075849865,0.25621698,63763.0,63762.0,0.25448853]
[1721075849996,0.25621698,63763.0,63762.0,0.24748853]
[1721075850196,0.25621698,63763.0,63762.0,0.13605238]
[1721075850433,0.25621698,63763.0,63762.0,0.13105238]
[1721075850434,0.25611184,63763.0,63762.0,0.13105238]
[1721075850606,0.19197547,63763.0,63762.0,0.13105238]
[1721075850805,0.19197547,63763.0,63762.0,0.15705238]
[1721075850806,0.43989135,63763.0,63762.0,0.15705238]
[1721075851459,0.39299631,63763.0,63762.0,0.15705238]
[1721075851629,0.25611378,63763.0,63762.0,0.20288853]
[1721075851811,0.25611378,63763.0,63762.0,0.25288853]
[1721075852010,0.25611378,63763.0,63762.0,0.20288853]
[1721075852442,0.47304378,63763.0,63762.0,0.026]
[1721075852647,0.92288017,63763.0,63762.0,0.026]
[1721075852853,1.38188373,63763.0,63762.0,0.026]
[1721075853068,1.31154117,63763.0,63762.0,0.026]
[1721075853274,1.42877877,63763.0,63762.0,0.026]
[1721075853480,1.31154117,63763.0,63762.0,0.026]
[1721075853900,1.42672963,63763.0,63762.0,0.026]
[1721075855453,1.30946468,63763.0,63762.0,0.026]
[1721075857204,1.30895435,63763.0,63762.0,0.026]
[1721075858331,1.30895435,63763.0,63762.0,0.026924]
[1721075858727,1.30979435,63763.0,63762.0,0.026924]
[1721075860343,1.93711635,63763.0,63762.0,0.026924]
[1721075860550,1.96011635,63763.0,63762.0,0.026924]
[1721075861187,1.96011635,63763.0,63762.0,0.014924]
[1721075861188,2.20991635,63763.0,63762.0,0.014924]
[1721075861596,2.20991635,63763.0,63762.0,0.003924]
[1721075861799,2.20991635,63763.0,63762.0,0.004924]
[1721075862002,2.20991635,63763.0,63762.0,0.001924]
[1721075862425,2.20991635,63763.0,63762.0,0.002924]
[1721075863453,2.20991635,63763.0,63762.0,0.001924]
[1721075863665,2.20961952,63763.0,63762.0,0.002924]
[1721075864207,2.20961952,63763.0,63762.0,0.000924]
[1721075864440,2.21061952,63763.0,63762.0,0.002924]
[1721075864777,2.21061952,63763.0,63762.0,0.001924]
[1721075864972,2.20961952,63763.0,63762.0,0.001924]
[1721075865221,2.21061952,63763.0,63762.0,0.002924]
[1721075865986,2.21061952,63763.0,63754.0,0.000924]
[1721075865987,1.47465,63755.0,63754.0,0.000924]
[1721075866188,2.20787782,63755.0,63754.0,0.000924]
[1721075866408,2.21737194,63755.0,63754.0,0.000924]
[1721075866617,2.21765746,63755.0,63754.0,0.000924]
[1721075867223,2.04471257,63755.0,63754.0,0.000924]
[1721075867465,1.90471426,63755.0,63754.0,0.000924]
[1721075869708,2.21841426,63755.0,63754.0,0.000924]
[1721075869903,2.21829213,63755.0,63754.0,0.000924]
[1721075870245,2.21829358,63755.0,63754.0,0.000924]
[1721075870617,2.35899521,63755.0,63754.0,0.000924]
[1721075870805,2.21829358,63755.0,63754.0,0.000924]
[1721075872421,1.90459358,63755.0,63754.0,0.000924]
[1721075873468,1.84049359,63755.0,63754.0,0.08197638]
[1721075874124,1.52679359,63755.0,63754.0,0.08197638]
[1721075874312,1.62054634,63755.0,63754.0,0.08197638]
[1721075874902,1.64398842,63755.0,63754.0,0.08197638]
[1721075875306,1.64498842,63755.0,63754.0,0.08197638]
[1721075875511,1.52779359,63755.0,63754.0,0.08197638]
[1721075875686,0.48280769,63755.0,63754.0,0.08197638]
[1721075875919,0.95335769,63755.0,63754.0,0.08197638]
[1721075876120,0.85959359,63755.0,63754.0,0.08197638]
[1721075876447,0.69991689,63755.0,63754.0,0.08197638]
[1721075876669,0.61630285,63755.0,63754.0,0.08197638]
[1721075876894,0.54597999,63755.0,63754.0,0.08197638]
[1721075877329,0.54597999,63755.0,63754.0,0.08597638]
[1721075877535,0.63975376,63755.0,63754.0,0.08597638]
[1721075877839,0.54597999,63755.0,63754.0,0.08597638]
[1721075878285,0.54697999,63755.0,63754.0,0.08597638]
[1721075878482,0.64075376,63755.0,63754.0,0.08597638]
[1721075879101,0.63975376,63755.0,63754.0,0.08597638]
[1721075879307,0.63975376,63755.0,63754.0,0.08897638]
[1721075879512,0.54421046,63755.0,63754.0,0.08897638]
[1721075879907,0.54421053,63755.0,63754.0,0.08897638]
[1721075880317,0.97512774,63755.0,63754.0,0.08897638]
[1721075880564,0.85791053,63755.0,63754.0,0.08897638]
[1721075882434,0.85870381,63755.0,63754.0,0.08897638]
[1721075883786,1.73590381,63755.0,63754.0,0.007924]
[1721075883987,1.89969208,63755.0,63754.0,0.007924]
[1721075885593,1.74098854,63755.0,63754.0,0.007924]
[1721075885893,1.44494519,63755.0,63754.0,0.08897638]
[1721075886112,1.44493889,63755.0,63754.0,0.08897638]
[1721075886339,1.10823889,63755.0,63754.0,0.08897638]
[1721075886582,0.54473889,63755.0,63754.0,0.08897638]
[1721075887216,0.85843889,63755.0,63754.0,0.08897638]
[1721075891281,0.38788889,63755.0,63754.0,0.08897638]
[1721075891491,0.38788889,63755.0,63754.0,0.15283991]
[1721075891690,0.28788889,63755.0,63754.0,0.97279691]
[1721075891913,0.18199857,63755.0,63754.0,0.96973338]
[1721075892117,0.14342357,63755.0,63754.0,0.65602838]
[1721075892318,0.18207943,63755.0,63754.0,0.65602838]
[1721075892522,0.14342357,63755.0,63754.0,0.65602838]
[1721075892736,0.14342357,63755.0,63754.0,0.96273338]
[1721075892945,0.14342357,63755.0,63754.0,0.96573338]
[1721075893168,0.0621258,63755.0,63754.0,0.33917638]
[1721075893398,0.24526757,63755.0,63754.0,0.24783991]
[1721075893619,0.33190198,63755.0,63754.0,0.29067606]
[1721075893832,0.28494585,63755.0,63754.0,0.30161253]
[1721075894044,0.28494585,63755.0,63754.0,0.48561253]
[1721075894045,0.1873855,63755.0,63754.0,0.48561253]
[1721075894255,0.28498798,63755.0,63754.0,0.31561253]
[1721075894466,0.3319516,63755.0,63754.0,0.30467606]
[1721075894666,0.33198251,63755.0,63754.0,0.30467606]
[1721075894874,0.33198251,63755.0,63754.0,0.31867606]
[1721075895077,0.1252597,63755.0,63754.0,0.31867606]
[1721075895280,0.3332949,63755.0,63754.0,0.30467606]
[1721075895426,0.28632692,63755.0,63754.0,0.30161253]
[1721075895629,0.28632692,63755.0,63754.0,0.48867606]
[1721075895833,0.18869271,63755.0,63754.0,0.31561253]
[1721075896034,0.28637479,63755.0,63754.0,0.31561253]
[1721075896210,0.28637479,63755.0,63754.0,0.30161253]
[1721075896417,0.28637479,63755.0,63754.0,0.31767606]
[1721075896599,0.28637479,63755.0,63754.0,0.30367606]
[1721075896795,0.32719912,63755.0,63754.0,0.31767606]
[1721075897054,0.32719912,63755.0,63754.0,0.30161253]
[1721075897257,0.20604161,63755.0,63754.0,0.30161253]
[1721075897411,0.15006742,63755.0,63754.0,0.30467606]
[1721075897628,0.35679067,63755.0,63754.0,0.30467606]
[1721075897828,0.18870883,63755.0,63754.0,0.47467606]
[1721075898062,0.15006742,63755.0,63754.0,0.47161253]
[1721075898230,0.19704127,63755.0,63754.0,0.30161253]
[1721075898439,0.18561494,63755.0,63754.0,0.27283991]
[1721075898640,0.35366293,63755.0,63754.0,0.27283991]
[1721075898900,0.35362307,63755.0,63754.0,0.26977638]
[1721075899706,0.28325214,63755.0,63754.0,0.20897638]